[Event "Late-Titled-Tuesday-Blitz-October-03-2023"]
[Site "Chess.com"]
[Date "2023.10.03"]
[Round "1"]
[White "Chempiblinka"]
[Black "aa175"]
[Result "0-1"]
[WhiteElo "2299"]
[BlackElo "2605"]
[TimeControl "180+1"]
[EndTime "14:05:20 PDT"]
[Termination "aa175 won on time"]

1. Nf3 {[%clk 0:03:00]} 1... d5 {[%clk 0:02:59.9]} 2. c4 {[%clk 0:03:00.2]} 2...
c6 {[%clk 0:02:59.8]} 3. g3 {[%clk 0:02:59.7]} 3... Bf5 {[%clk 0:02:59.6]} 4.
cxd5 {[%clk 0:03:00.4]} 4... cxd5 {[%clk 0:02:59.5]} 5. Qb3 {[%clk 0:03:01.2]}
5... Nc6 {[%clk 0:02:53.8]} 6. Qxb7 {[%clk 0:02:55.5]} 6... Rc8 {[%clk
0:02:53.5]} 7. Nc3 {[%clk 0:01:59.2]} 7... e6 {[%clk 0:02:45.7]} 8. Bg2 {[%clk
0:01:50.1]} 8... Nf6 {[%clk 0:02:09.7]} 9. O-O {[%clk 0:01:46.9]} 9... Bd6
{[%clk 0:02:03.8]} 10. Nb5 {[%clk 0:01:41.3]} 10... Bc5 {[%clk 0:01:58.3]} 11.
b4 {[%clk 0:01:06.6]} 11... Nxb4 {[%clk 0:01:43.6]} 12. Nfd4 {[%clk 0:01:01.5]}
12... Rb8 {[%clk 0:01:37.1]} 13. Nc7+ {[%clk 0:00:26.6]} 13... Kf8 {[%clk
0:01:27.9]} 14. Nc6 {[%clk 0:00:07.1]} 14... Rxb7 {[%clk 0:01:25.1]} 15. Nxd8
{[%clk 0:00:07.6]} 15... Rxc7 {[%clk 0:01:26]} 0-1

[Event "Late-Titled-Tuesday-Blitz-October-03-2023"]
[Site "Chess.com"]
[Date "2023.10.03"]
[Round "1"]
[White "Hikaru"]
[Black "Marasmus01"]
[Result "1-0"]
[WhiteElo "3270"]
[BlackElo "2511"]
[TimeControl "180+1"]
[EndTime "14:05:23 PDT"]
[Termination "Hikaru won by resignation"]

1. Nf3 {[%clk 0:03:00.9]} 1... Nf6 {[%clk 0:02:59.9]} 2. a3 {[%clk 0:03:01]}
2... g6 {[%clk 0:02:59.6]} 3. b4 {[%clk 0:03:00.6]} 3... Bg7 {[%clk 0:02:59.4]}
4. Bb2 {[%clk 0:03:01]} 4... O-O {[%clk 0:02:59.6]} 5. c4 {[%clk 0:03:01]} 5...
a5 {[%clk 0:02:58.7]} 6. b5 {[%clk 0:02:59]} 6... c6 {[%clk 0:02:58.7]} 7. a4
{[%clk 0:02:59.2]} 7... d5 {[%clk 0:02:58.6]} 8. e3 {[%clk 0:02:59.6]} 8... Bg4
{[%clk 0:02:58.3]} 9. cxd5 {[%clk 0:02:54.8]} 9... cxd5 {[%clk 0:02:56.3]} 10.
Be2 {[%clk 0:02:54.3]} 10... Nbd7 {[%clk 0:02:56.2]} 11. O-O {[%clk 0:02:54.6]}
11... Rc8 {[%clk 0:02:55.7]} 12. Nc3 {[%clk 0:02:51.6]} 12... e5 {[%clk
0:02:51.4]} 13. d4 {[%clk 0:02:48.9]} 13... e4 {[%clk 0:02:25.2]} 14. Nd2 {[%clk
0:02:48.8]} 14... Be6 {[%clk 0:02:14.4]} 15. Nb3 {[%clk 0:02:45.2]} 15... b6
{[%clk 0:02:11]} 16. Rc1 {[%clk 0:02:43.9]} 16... Qe7 {[%clk 0:02:10]} 17. Nb1
{[%clk 0:02:43.4]} 17... Qb4 {[%clk 0:02:00.5]} 18. N1d2 {[%clk 0:02:09.5]}
18... Nb8 {[%clk 0:01:42.2]} 19. Ra1 {[%clk 0:02:08.5]} 19... Rfd8 {[%clk
0:01:36.8]} 20. Ba3 {[%clk 0:02:08.7]} 20... Qc3 {[%clk 0:01:36.6]} 21. Rc1
{[%clk 0:02:06.2]} 21... Qxc1 {[%clk 0:00:14]} 22. Nxc1 {[%clk 0:02:05.4]} 22...
Nbd7 {[%clk 0:00:13.2]} 23. Na2 {[%clk 0:02:05]} 23... Re8 {[%clk 0:00:13.1]}
24. Nb1 {[%clk 0:02:04.8]} 24... Rc7 {[%clk 0:00:12.5]} 25. Qd2 {[%clk
0:02:04.5]} 25... Rec8 {[%clk 0:00:12.6]} 26. Rc1 {[%clk 0:02:05.1]} 26... Bf8
{[%clk 0:00:12.8]} 27. Bxf8 {[%clk 0:02:04.9]} 27... Nxf8 {[%clk 0:00:12.3]} 28.
Rxc7 {[%clk 0:02:04.9]} 28... Rxc7 {[%clk 0:00:13.2]} 29. Nac3 {[%clk
0:02:05.2]} 29... N8d7 {[%clk 0:00:13.3]} 30. Bd1 {[%clk 0:02:05.6]} 30... Ne8
{[%clk 0:00:13]} 31. Bb3 {[%clk 0:02:05.8]} 31... Nef6 {[%clk 0:00:12.1]} 32.
Qa2 {[%clk 0:02:05.9]} 32... Bg4 {[%clk 0:00:08.8]} 33. h3 {[%clk 0:02:05.9]}
33... Bd1 {[%clk 0:00:08.3]} 34. Bxd1 {[%clk 0:02:05.8]} 1-0

[Event "Late-Titled-Tuesday-Blitz-October-03-2023"]
[Site "Chess.com"]
[Date "2023.10.03"]
[Round "1"]
[White "Bauman_Guy"]
[Black "KamilGrycel"]
[Result "1-0"]
[WhiteElo "2876"]
[BlackElo "2457"]
[TimeControl "180+1"]
[EndTime "14:05:23 PDT"]
[Termination "Bauman_Guy won by resignation"]

1. e4 {[%clk 0:03:00.9]} 1... d6 {[%clk 0:02:59.5]} 2. d4 {[%clk 0:03:00.7]}
2... Nf6 {[%clk 0:02:59.4]} 3. Nc3 {[%clk 0:03:00.6]} 3... c6 {[%clk 0:02:59.2]}
4. Nf3 {[%clk 0:02:59.6]} 4... Bg4 {[%clk 0:02:58.6]} 5. h3 {[%clk 0:02:59.5]}
5... Bh5 {[%clk 0:02:58.5]} 6. g4 {[%clk 0:02:59]} 6... Bg6 {[%clk 0:02:58.1]}
7. Qe2 {[%clk 0:02:59]} 7... e6 {[%clk 0:02:56.5]} 8. h4 {[%clk 0:02:59.3]} 8...
h5 {[%clk 0:02:47.6]} 9. g5 {[%clk 0:02:59.4]} 9... Nfd7 {[%clk 0:02:46.2]} 10.
d5 {[%clk 0:02:59.8]} 10... e5 {[%clk 0:02:40.3]} 11. Bh3 {[%clk 0:02:56.5]}
11... Be7 {[%clk 0:02:36.8]} 12. Be3 {[%clk 0:02:55.3]} 12... cxd5 {[%clk
0:02:22]} 13. exd5 {[%clk 0:02:44.4]} 13... Na6 {[%clk 0:02:16.3]} 14. Nd2
{[%clk 0:02:25.8]} 14... O-O {[%clk 0:02:14.6]} 15. Nde4 {[%clk 0:02:12.7]}
15... Rc8 {[%clk 0:02:10.4]} 16. O-O {[%clk 0:01:58.4]} 16... Nb4 {[%clk
0:01:43.9]} 17. Rad1 {[%clk 0:01:45.7]} 17... Bxe4 {[%clk 0:01:36.4]} 18. Nxe4
{[%clk 0:01:45.5]} 18... Nxc2 {[%clk 0:01:16.1]} 19. Qxh5 {[%clk 0:01:39.6]}
19... g6 {[%clk 0:01:13.6]} 20. Qh6 {[%clk 0:01:37.5]} 20... Re8 {[%clk
0:01:09.4]} 21. Bxd7 {[%clk 0:01:26.1]} 21... Qxd7 {[%clk 0:00:29.4]} 22. Nf6+
{[%clk 0:01:20]} 22... Bxf6 {[%clk 0:00:27.3]} 23. gxf6 {[%clk 0:01:20.9]} 23...
Qg4+ {[%clk 0:00:25.7]} 24. Kh2 {[%clk 0:01:21]} 1-0

[Event "Late-Titled-Tuesday-Blitz-October-03-2023"]
[Site "Chess.com"]
[Date "2023.10.03"]
[Round "1"]
[White "Zq1"]
[Black "Chessnut2018"]
[Result "1-0"]
[WhiteElo "2513"]
[BlackElo "1261"]
[TimeControl "180+1"]
[EndTime "14:05:34 PDT"]
[Termination "Zq1 won on time"]

1. d4 {[%clk 0:02:59.7]} 1... d5 {[%clk 0:02:58.9]} 2. c4 {[%clk 0:02:59.7]}
2... e6 {[%clk 0:02:58.9]} 3. Nc3 {[%clk 0:02:58.8]} 3... c5 {[%clk 0:02:58.7]}
4. cxd5 {[%clk 0:02:57.9]} 4... cxd4 {[%clk 0:02:54.7]} 5. Qxd4 {[%clk
0:02:57.8]} 5... exd5 {[%clk 0:02:54.6]} 6. Qxd5 {[%clk 0:02:52.7]} 6... Qxd5
{[%clk 0:02:53.5]} 7. Nxd5 {[%clk 0:02:52.8]} 7... Bd6 {[%clk 0:02:46.7]} 8. Bf4
{[%clk 0:02:40.5]} 8... Bxf4 {[%clk 0:02:40.7]} 9. Nxf4 {[%clk 0:02:40.2]} 9...
Nf6 {[%clk 0:02:37.5]} 10. e3 {[%clk 0:02:40.1]} 10... O-O {[%clk 0:02:37.4]}
11. Nf3 {[%clk 0:02:39.6]} 11... a6 {[%clk 0:02:34.6]} 12. Be2 {[%clk
0:02:39.4]} 12... b5 {[%clk 0:02:34.3]} 13. O-O {[%clk 0:02:39.2]} 13... Bb7
{[%clk 0:02:32.2]} 14. a4 {[%clk 0:02:39.1]} 14... bxa4 {[%clk 0:02:28.2]} 15.
Rxa4 {[%clk 0:02:38]} 15... Nc6 {[%clk 0:02:14.6]} 16. Rfa1 {[%clk 0:02:36.3]}
16... a5 {[%clk 0:02:00.2]} 17. Nd4 {[%clk 0:02:30.3]} 17... Nxd4 {[%clk
0:01:59.1]} 18. Rxd4 {[%clk 0:02:30.2]} 18... Ba6 {[%clk 0:01:04.2]} 19. h3
{[%clk 0:02:24.7]} 19... Bxe2 {[%clk 0:01:03.6]} 20. Nxe2 {[%clk 0:02:24.7]}
20... Rfb8 {[%clk 0:00:55.7]} 21. Ra2 {[%clk 0:02:24.7]} 21... g6 {[%clk
0:00:44.1]} 22. Nc3 {[%clk 0:02:23.5]} 22... Kg7 {[%clk 0:00:43.8]} 23. g4
{[%clk 0:02:21.2]} 23... Re8 {[%clk 0:00:27.7]} 24. g5 {[%clk 0:02:15.2]} 24...
Nh5 {[%clk 0:00:19.7]} 25. Rd5 {[%clk 0:02:15.2]} 25... Re6 {[%clk 0:00:15.5]}
26. Rdxa5 {[%clk 0:02:13]} 26... Rxa5 {[%clk 0:00:13.5]} 27. Rxa5 {[%clk
0:02:12]} 27... Rb6 {[%clk 0:00:13.6]} 28. Rb5 {[%clk 0:02:11.9]} 28... Ra6
{[%clk 0:00:12.7]} 29. Kg2 {[%clk 0:02:11]} 29... Ra1 {[%clk 0:00:12.3]} 30. h4
{[%clk 0:02:10.2]} 30... Rc1 {[%clk 0:00:10.1]} 31. Ne4 {[%clk 0:02:05.8]} 31...
Rc2 {[%clk 0:00:09.1]} 32. Ng3 {[%clk 0:02:03.5]} 32... Nxg3 {[%clk 0:00:06.1]}
33. Kxg3 {[%clk 0:02:03.8]} 33... h6 {[%clk 0:00:05.2]} 34. Rb8 {[%clk
0:02:02.1]} 34... hxg5 {[%clk 0:00:05]} 35. hxg5 {[%clk 0:02:01.5]} 35... Rc5
{[%clk 0:00:04.6]} 36. f4 {[%clk 0:02:01.4]} 36... f6 {[%clk 0:00:03.9]} 37.
Rb7+ {[%clk 0:02:00.5]} 37... Kf8 {[%clk 0:00:03]} 38. gxf6 {[%clk 0:02:00.5]}
1-0

[Event "Late-Titled-Tuesday-Blitz-October-03-2023"]
[Site "Chess.com"]
[Date "2023.10.03"]
[Round "1"]
[White "jup1978"]
[Black "FabianoCaruana"]
[Result "0-1"]
[WhiteElo "2507"]
[BlackElo "3062"]
[TimeControl "180+1"]
[EndTime "14:05:35 PDT"]
[Termination "FabianoCaruana won by resignation"]

1. d4 {[%clk 0:03:00.9]} 1... Nf6 {[%clk 0:02:59.8]} 2. Nf3 {[%clk 0:03:00.8]}
2... e6 {[%clk 0:02:59.4]} 3. c3 {[%clk 0:02:58.4]} 3... b6 {[%clk 0:02:58.8]}
4. e3 {[%clk 0:02:58.3]} 4... Bb7 {[%clk 0:02:59.3]} 5. Bd3 {[%clk 0:02:58.8]}
5... d5 {[%clk 0:02:58.1]} 6. Qe2 {[%clk 0:02:58.9]} 6... Nbd7 {[%clk
0:02:57.9]} 7. Nbd2 {[%clk 0:02:59.3]} 7... Ne4 {[%clk 0:02:57.7]} 8. O-O {[%clk
0:02:57.6]} 8... Bd6 {[%clk 0:02:57.7]} 9. c4 {[%clk 0:02:47.3]} 9... O-O {[%clk
0:02:57.1]} 10. b3 {[%clk 0:02:45.2]} 10... a5 {[%clk 0:02:56]} 11. Bb2 {[%clk
0:02:44.8]} 11... a4 {[%clk 0:02:55.7]} 12. Bxe4 {[%clk 0:02:41.7]} 12... dxe4
{[%clk 0:02:55.6]} 13. Ne5 {[%clk 0:02:42.1]} 13... Re8 {[%clk 0:02:38.7]} 14.
Rfd1 {[%clk 0:02:24.6]} 14... Qe7 {[%clk 0:02:38.4]} 15. Nxd7 {[%clk 0:02:16.1]}
15... Qxd7 {[%clk 0:02:39.3]} 16. c5 {[%clk 0:02:15.6]} 16... Bf8 {[%clk
0:02:37.3]} 17. cxb6 {[%clk 0:02:11.4]} 17... cxb6 {[%clk 0:02:38.2]} 18. Nc4
{[%clk 0:02:11]} 18... Qb5 {[%clk 0:02:36.3]} 19. Qc2 {[%clk 0:01:49.3]} 19...
Rec8 {[%clk 0:02:32.3]} 20. Rdc1 {[%clk 0:01:48.9]} 20... Bd5 {[%clk 0:02:31.9]}
21. h3 {[%clk 0:01:34.9]} 21... h6 {[%clk 0:02:31.4]} 22. Bc3 {[%clk 0:01:24.7]}
22... Qa6 {[%clk 0:02:18.4]} 23. Qb1 {[%clk 0:01:15.4]} 23... b5 {[%clk
0:02:13.2]} 24. Ne5 {[%clk 0:01:03.5]} 24... b4 {[%clk 0:02:12.8]} 25. Be1
{[%clk 0:01:02.6]} 25... Rxc1 {[%clk 0:02:13.2]} 26. Qxc1 {[%clk 0:01:01.4]}
26... axb3 {[%clk 0:02:10.4]} 27. Nd7 {[%clk 0:00:56.7]} 27... bxa2 {[%clk
0:02:00.8]} 28. Nxf8 {[%clk 0:00:56]} 28... Rxf8 {[%clk 0:02:01.7]} 29. Bxb4
{[%clk 0:00:54.8]} 29... Rb8 {[%clk 0:02:01.6]} 30. Bc3 {[%clk 0:00:52.5]} 30...
Qd3 {[%clk 0:02:00.9]} 31. Bb2 {[%clk 0:00:29.4]} 31... Qe2 {[%clk 0:01:55.9]}
32. Bc3 {[%clk 0:00:26]} 32... Kh7 {[%clk 0:01:54.3]} 33. Kh2 {[%clk 0:00:13.8]}
33... Qxf2 {[%clk 0:01:52.9]} 34. Be1 {[%clk 0:00:13.1]} 34... Qe2 {[%clk
0:01:51.8]} 35. Bc3 {[%clk 0:00:12.2]} 35... Rb3 {[%clk 0:01:47.1]} 0-1

[Event "Late-Titled-Tuesday-Blitz-October-03-2023"]
[Site "Chess.com"]
[Date "2023.10.03"]
[Round "1"]
[White "venturov"]
[Black "rasmussvane"]
[Result "0-1"]
[WhiteElo "2497"]
[BlackElo "2993"]
[TimeControl "180+1"]
[EndTime "14:05:45 PDT"]
[Termination "rasmussvane won by resignation"]

1. Nf3 {[%clk 0:03:00.9]} 1... d5 {[%clk 0:02:58.2]} 2. e3 {[%clk 0:03:00.8]}
2... Nf6 {[%clk 0:02:58]} 3. c4 {[%clk 0:02:56.9]} 3... c6 {[%clk 0:02:54.2]} 4.
b3 {[%clk 0:02:56.8]} 4... Bf5 {[%clk 0:02:53]} 5. Bb2 {[%clk 0:02:56.5]} 5...
e6 {[%clk 0:02:53.2]} 6. Nc3 {[%clk 0:02:56.1]} 6... Nbd7 {[%clk 0:02:51.7]} 7.
Be2 {[%clk 0:02:51.5]} 7... Bd6 {[%clk 0:02:51.8]} 8. O-O {[%clk 0:02:49.6]}
8... h6 {[%clk 0:02:51.9]} 9. Rc1 {[%clk 0:02:43.6]} 9... O-O {[%clk 0:02:51.7]}
10. cxd5 {[%clk 0:02:42.6]} 10... exd5 {[%clk 0:02:51.7]} 11. d3 {[%clk
0:02:35.6]} 11... Qe7 {[%clk 0:02:49]} 12. h3 {[%clk 0:02:25.3]} 12... Bh7
{[%clk 0:02:44.9]} 13. Re1 {[%clk 0:02:24.8]} 13... Nc5 {[%clk 0:02:43.7]} 14.
Bf1 {[%clk 0:02:23.9]} 14... Ne6 {[%clk 0:02:43.8]} 15. Ne2 {[%clk 0:02:15.2]}
15... Ba3 {[%clk 0:02:39.7]} 16. Qd2 {[%clk 0:02:14.4]} 16... Bxb2 {[%clk
0:02:40.2]} 17. Qxb2 {[%clk 0:02:15.3]} 17... a5 {[%clk 0:02:40.6]} 18. a3
{[%clk 0:02:06.4]} 18... Bxd3 {[%clk 0:02:39.8]} 19. Ng3 {[%clk 0:01:51.8]}
19... Bxf1 {[%clk 0:02:39.5]} 20. Rxf1 {[%clk 0:01:51.2]} 20... Ng5 {[%clk
0:02:38.2]} 21. Nd4 {[%clk 0:01:50.5]} 21... g6 {[%clk 0:02:36.4]} 22. b4 {[%clk
0:01:47.7]} 22... axb4 {[%clk 0:02:36.1]} 23. axb4 {[%clk 0:01:48.6]} 23... Nge4
{[%clk 0:02:28.8]} 24. Nxe4 {[%clk 0:01:44.3]} 24... Nxe4 {[%clk 0:02:29.7]} 25.
b5 {[%clk 0:01:44.7]} 25... c5 {[%clk 0:02:28.3]} 26. Ne2 {[%clk 0:01:43.7]}
26... b6 {[%clk 0:02:22]} 27. Nf4 {[%clk 0:01:39.7]} 27... Rfd8 {[%clk
0:02:19.6]} 28. Rfd1 {[%clk 0:01:39.3]} 28... Qf6 {[%clk 0:02:08.2]} 29. Qe2
{[%clk 0:01:23.6]} 29... Nc3 {[%clk 0:02:01.6]} 30. Rxc3 {[%clk 0:01:23.7]}
30... Qxc3 {[%clk 0:02:02.5]} 31. Rxd5 {[%clk 0:01:21.2]} 31... Rxd5 {[%clk
0:02:00]} 32. Nxd5 {[%clk 0:01:22.1]} 32... Ra1+ {[%clk 0:01:59.9]} 33. Kh2
{[%clk 0:01:20.8]} 33... Qe5+ {[%clk 0:02:00.2]} 34. Nf4 {[%clk 0:01:17]} 34...
g5 {[%clk 0:01:59.9]} 35. Qg4 {[%clk 0:01:17.3]} 35... Kh7 {[%clk 0:01:54.4]}
36. Qh5 {[%clk 0:00:54.3]} 36... Qc7 {[%clk 0:01:48.5]} 37. g3 {[%clk
0:00:38.4]} 37... gxf4 {[%clk 0:01:46.1]} 38. Qf5+ {[%clk 0:00:39]} 38... Kg7
{[%clk 0:01:45.7]} 39. Qg4+ {[%clk 0:00:24.5]} 39... Kf8 {[%clk 0:01:45.4]} 40.
gxf4 {[%clk 0:00:20.6]} 40... Qd6 {[%clk 0:01:42.9]} 41. Qc8+ {[%clk 0:00:19]}
41... Kg7 {[%clk 0:01:43.3]} 42. Qf5 {[%clk 0:00:18.8]} 42... Qf6 {[%clk
0:01:41.6]} 0-1

[Event "Late-Titled-Tuesday-Blitz-October-03-2023"]
[Site "Chess.com"]
[Date "2023.10.03"]
[Round "1"]
[White "DucksParadise"]
[Black "Quattroporte300"]
[Result "1-0"]
[WhiteElo "2659"]
[BlackElo "2355"]
[TimeControl "180+1"]
[EndTime "14:05:47 PDT"]
[Termination "DucksParadise won by resignation"]

1. d4 {[%clk 0:02:57.8]} 1... Nf6 {[%clk 0:02:57.6]} 2. c4 {[%clk 0:02:57.7]}
2... b6 {[%clk 0:02:57.6]} 3. Nc3 {[%clk 0:02:52.7]} 3... Bb7 {[%clk 0:02:56.6]}
4. Qc2 {[%clk 0:02:52.5]} 4... d5 {[%clk 0:02:50]} 5. cxd5 {[%clk 0:02:52.1]}
5... Nxd5 {[%clk 0:02:49.8]} 6. e4 {[%clk 0:02:52.5]} 6... Nxc3 {[%clk
0:02:48.9]} 7. bxc3 {[%clk 0:02:53.4]} 7... e6 {[%clk 0:02:40.7]} 8. Nf3 {[%clk
0:02:50]} 8... Be7 {[%clk 0:02:38.1]} 9. Bf4 {[%clk 0:02:19.3]} 9... O-O {[%clk
0:02:34.6]} 10. Bd3 {[%clk 0:02:18.8]} 10... c5 {[%clk 0:02:34.7]} 11. d5 {[%clk
0:02:17.4]} 11... exd5 {[%clk 0:02:23.3]} 12. exd5 {[%clk 0:02:18.3]} 12... Qxd5
{[%clk 0:02:23.1]} 13. O-O {[%clk 0:02:14.9]} 13... h6 {[%clk 0:02:15]} 14. Rfe1
{[%clk 0:01:59]} 14... Bf6 {[%clk 0:02:15]} 15. Be4 {[%clk 0:01:50.6]} 15... Qd7
{[%clk 0:02:07.4]} 16. Rad1 {[%clk 0:01:33.3]} 16... Qc8 {[%clk 0:02:05.8]} 17.
Bf5 {[%clk 0:01:27.5]} 17... Qc6 {[%clk 0:02:02]} 18. Rd6 {[%clk 0:01:27.1]}
18... Qb5 {[%clk 0:01:47.9]} 19. Bxh6 {[%clk 0:01:06.5]} 19... Nc6 {[%clk
0:01:33.7]} 20. Rxf6 {[%clk 0:01:03.8]} 20... gxf6 {[%clk 0:01:29.6]} 21. Bh7+
{[%clk 0:00:57]} 21... Kh8 {[%clk 0:01:28.8]} 22. Qf5 {[%clk 0:00:57.4]} 22...
Rg8 {[%clk 0:01:09]} 23. Bxg8 {[%clk 0:00:56.3]} 23... Rxg8 {[%clk 0:01:07.8]}
24. Re8 {[%clk 0:00:29.8]} 1-0

[Event "Late-Titled-Tuesday-Blitz-October-03-2023"]
[Site "Chess.com"]
[Date "2023.10.03"]
[Round "1"]
[White "Jospem"]
[Black "maksimys18"]
[Result "1-0"]
[WhiteElo "3042"]
[BlackElo "2505"]
[TimeControl "180+1"]
[EndTime "14:05:52 PDT"]
[Termination "Jospem won on time"]

1. e4 {[%clk 0:03:00.9]} 1... e6 {[%clk 0:02:56.8]} 2. d4 {[%clk 0:03:00.9]}
2... d5 {[%clk 0:02:57.1]} 3. Nd2 {[%clk 0:03:01.6]} 3... Nf6 {[%clk 0:02:56.6]}
4. e5 {[%clk 0:03:01]} 4... Nfd7 {[%clk 0:02:56.8]} 5. c3 {[%clk 0:03:01.9]}
5... c5 {[%clk 0:02:57.1]} 6. Ndf3 {[%clk 0:03:02.8]} 6... Nc6 {[%clk
0:02:57.2]} 7. Bd3 {[%clk 0:03:03.4]} 7... cxd4 {[%clk 0:02:57.3]} 8. cxd4
{[%clk 0:03:04.3]} 8... f6 {[%clk 0:02:57.5]} 9. exf6 {[%clk 0:03:04.1]} 9...
Nxf6 {[%clk 0:02:57.2]} 10. Ne2 {[%clk 0:03:04.6]} 10... Bd6 {[%clk 0:02:55.8]}
11. O-O {[%clk 0:03:04.8]} 11... Qc7 {[%clk 0:02:55.1]} 12. Bg5 {[%clk 0:03:01]}
12... O-O {[%clk 0:02:54.6]} 13. Bh4 {[%clk 0:03:01]} 13... Bd7 {[%clk
0:02:54.6]} 14. Bg3 {[%clk 0:03:01]} 14... Rae8 {[%clk 0:02:50.8]} 15. Nc3
{[%clk 0:02:59.1]} 15... e5 {[%clk 0:02:42.6]} 16. Nb5 {[%clk 0:02:58.6]} 16...
Qb8 {[%clk 0:02:36.5]} 17. Nxd6 {[%clk 0:02:53.2]} 17... Qxd6 {[%clk 0:02:36.8]}
18. dxe5 {[%clk 0:02:53.5]} 18... Nxe5 {[%clk 0:02:37]} 19. Nxe5 {[%clk
0:02:53.8]} 19... Rxe5 {[%clk 0:02:36.5]} 20. Bxe5 {[%clk 0:02:44.3]} 20... Qxe5
{[%clk 0:02:37.4]} 21. Qe2 {[%clk 0:02:44.4]} 21... Qg5 {[%clk 0:02:28.6]} 22.
f4 {[%clk 0:02:36.9]} 22... Qh4 {[%clk 0:02:25.3]} 23. Rae1 {[%clk 0:02:25.7]}
23... a6 {[%clk 0:02:00.9]} 24. Qf2 {[%clk 0:02:23]} 24... Qh6 {[%clk
0:01:57.9]} 25. h3 {[%clk 0:02:10.7]} 25... Kh8 {[%clk 0:01:33.1]} 26. f5 {[%clk
0:01:59.5]} 26... Nh5 {[%clk 0:01:22.6]} 27. Qe3 {[%clk 0:01:45]} 27... Qf6
{[%clk 0:01:13.5]} 28. g4 {[%clk 0:01:39.3]} 28... d4 {[%clk 0:01:02.1]} 29. Qe7
{[%clk 0:01:31.7]} 29... Rf7 {[%clk 0:00:07.4]} 30. Qxf6 {[%clk 0:01:23.6]}
30... Nxf6 {[%clk 0:00:08.3]} 31. g5 {[%clk 0:01:24.3]} 31... Nd5 {[%clk
0:00:08.6]} 32. Bc4 {[%clk 0:01:24.8]} 1-0

[Event "Late-Titled-Tuesday-Blitz-October-03-2023"]
[Site "Chess.com"]
[Date "2023.10.03"]
[Round "1"]
[White "Sjakkerntobi"]
[Black "Gyulamiryan-koryun"]
[Result "1-0"]
[WhiteElo "2519"]
[BlackElo "1988"]
[TimeControl "180+1"]
[EndTime "14:05:52 PDT"]
[Termination "Sjakkerntobi won by resignation"]

1. e4 {[%clk 0:03:00.9]} 1... e5 {[%clk 0:02:55.3]} 2. Nf3 {[%clk 0:03:01.2]}
2... Nc6 {[%clk 0:02:53.7]} 3. Bc4 {[%clk 0:03:01.6]} 3... Nf6 {[%clk
0:02:53.1]} 4. d3 {[%clk 0:03:01]} 4... Be7 {[%clk 0:02:52.1]} 5. O-O {[%clk
0:03:00.9]} 5... O-O {[%clk 0:02:51.9]} 6. Nc3 {[%clk 0:02:57.5]} 6... d5 {[%clk
0:02:50.1]} 7. Nxd5 {[%clk 0:02:56]} 7... Nxd5 {[%clk 0:02:47.1]} 8. exd5 {[%clk
0:02:56.4]} 8... Na5 {[%clk 0:02:44.1]} 9. Nxe5 {[%clk 0:02:53.7]} 9... Bd6
{[%clk 0:02:32.1]} 10. Nf3 {[%clk 0:02:51.4]} 10... Bg4 {[%clk 0:02:31.1]} 11.
h3 {[%clk 0:02:51.5]} 11... Bh5 {[%clk 0:02:30.7]} 12. Bb5 {[%clk 0:02:35.9]}
12... Qf6 {[%clk 0:02:25.2]} 13. c4 {[%clk 0:02:20.2]} 13... c6 {[%clk
0:02:24.2]} 14. dxc6 {[%clk 0:02:20]} 14... bxc6 {[%clk 0:02:24.1]} 15. Ba4
{[%clk 0:02:20.5]} 15... Rad8 {[%clk 0:02:19.1]} 16. Be3 {[%clk 0:02:11.6]}
16... Be5 {[%clk 0:02:14.6]} 17. d4 {[%clk 0:01:57.7]} 17... Bb8 {[%clk
0:02:09.2]} 18. c5 {[%clk 0:01:41.5]} 18... Nc4 {[%clk 0:02:07]} 19. Bb3 {[%clk
0:01:40]} 19... Nxb2 {[%clk 0:02:05.9]} 20. Qe2 {[%clk 0:01:37.2]} 20... Bxf3
{[%clk 0:02:00.7]} 21. Qxf3 {[%clk 0:01:36.3]} 21... Qxf3 {[%clk 0:01:56.8]} 22.
gxf3 {[%clk 0:01:36.9]} 22... Nd3 {[%clk 0:01:46.1]} 23. Rfd1 {[%clk 0:01:28.4]}
23... Nb4 {[%clk 0:01:45.7]} 24. Rab1 {[%clk 0:01:26.6]} 24... Nd5 {[%clk
0:01:44.7]} 25. Ba4 {[%clk 0:01:25]} 25... Nc3 {[%clk 0:01:44]} 26. Bxc6 {[%clk
0:01:24.6]} 26... Nxd1 {[%clk 0:01:38.8]} 27. Rxd1 {[%clk 0:01:24.7]} 27... a5
{[%clk 0:01:31.6]} 28. a4 {[%clk 0:01:22]} 28... f5 {[%clk 0:01:27.1]} 29. Bg5
{[%clk 0:01:17.9]} 29... Rc8 {[%clk 0:01:23.7]} 30. Bd7 {[%clk 0:01:17.1]} 30...
Rc7 {[%clk 0:01:23.8]} 31. Be6+ {[%clk 0:01:14.4]} 31... Kh8 {[%clk 0:01:23]}
32. Rb1 {[%clk 0:01:14.2]} 32... Rc6 {[%clk 0:01:12]} 33. d5 {[%clk 0:01:10.2]}
33... Rxc5 {[%clk 0:01:11]} 34. Be7 {[%clk 0:01:10.5]} 34... Rfc8 {[%clk
0:01:01.2]} 35. Bxc5 {[%clk 0:01:07.4]} 35... Be5 {[%clk 0:00:56.7]} 36. Bxc8
{[%clk 0:01:06.6]} 1-0